fUST/lending_fUST_20250715
["ID","MTS","AMOUNT","RATE_DAILY","PERIOD"]
[372111559,1752523863582,-621.62,0.0002,2]
[372111560,1752523863592,-2631.55,0.0002,2]
[372111561,1752523863602,-1620.37,0.0002,2]
[372111562,1752523863611,-460.0,0.0002,2]
[372111563,1752523863623,-576.25,0.0002,2]
[372111565,1752523863633,-460.0,0.0002,2]
[372111567,1752523863642,-513.51,0.0002,2]
[372111569,1752523863652,-1752.1,0.0002,2]
[372111571,1752523863661,-460.0,0.0002,2]
[372111573,1752523863670,-489.86,0.0002,2]
[372111575,1752523863680,-460.0,0.0002,2]
[372111577,1752523863689,-701.36,0.0002,2]
[372111579,1752523863699,-460.0,0.0002,2]
[372111581,1752523863708,-460.0,0.0002,2]
[372111592,1752523863806,-1583.58,0.0002,2]
[372111594,1752523863815,-460.0,0.0002,2]
[372111596,1752523863825,-822.66,0.0002,2]
[372111598,1752523863834,-634.84,0.0002,2]
[372111600,1752523863843,-779.7,0.0002,2]
[372111602,1752523863853,-519.83,0.0002,2]
[372111604,1752523863863,-1000.0,0.00020021,2]
[372111606,1752523863874,-182.53065734,0.00020021,2]
[372111608,1752523863883,-1000.0,0.00020021,2]
[372111610,1752523863892,-1000.0,0.00020021,2]
[372111612,1752523863902,-4899.4222743,0.00020038,2]
[372111613,1752523863911,-500.0,0.00020164,2]
[372111615,1752523863922,-800.0,0.0002018,2]
[372111618,1752523863931,-430.67222,0.00020187,2]
[372111620,1752523863940,-569.89,0.00020211,2]
[372111622,1752523863950,-283.335264,0.00020268,2]
[372111623,1752523863959,-283.335264,0.00020268,2]
[372111625,1752523863969,-460.0,0.00020273,2]
[372111628,1752523863978,-607.62194879,0.00020273,2]
[372111629,1752523863988,-460.0,0.00020273,2]
[372111632,1752523863998,-151.0,0.00020273,2]
[372111634,1752523864007,-460.0,0.00020273,2]
[372111636,1752523864017,-488.69,0.00020273,2]
[372111637,1752523864026,-193.203456,0.00020273,2]
[372111640,1752523864036,-550.61756641,0.00020273,2]
[372111642,1752523864045,-193.203454,0.00020273,2]
[372111644,1752523864055,-460.0,0.00020273,2]
[372111645,1752523864064,-514.19,0.00020273,2]
[372111648,1752523864074,-608.74,0.00020273,2]
[372111649,1752523864083,-557.41,0.00020273,2]
[372111651,1752523864093,-460.0,0.00020273,2]
[372111653,1752523864102,-796.36,0.00020273,2]
[372111655,1752523864112,-460.0,0.00020273,2]
[372111657,1752523864122,-841.78,0.00020273,2]
[372111660,1752523864132,-460.0,0.00020273,2]
[372111662,1752523864145,-460.0,0.00020273,2]
[372111664,1752523864156,-752.74,0.00020273,2]
[372111666,1752523864166,-2405.54,0.00020273,2]
[372111668,1752523864175,-508.83,0.00020273,2]
[372111669,1752523864185,-460.0,0.00020273,2]
[372111671,1752523864194,-460.0,0.00020273,2]
[372111674,1752523864206,-936.8,0.00020273,2]
[372111676,1752523864218,-986.06,0.00020273,2]
[372111678,1752523864229,-751.76,0.00020273,2]
[372111680,1752523864238,-1466.15,0.00020273,2]
[372111682,1752523864248,-492.2,0.00020273,2]
[372111684,1752523864258,-3285.73,0.00020273,2]
[372111686,1752523864269,-981.45,0.00020273,2]
[372111688,1752523864278,-968.1,0.00020273,2]
[372111690,1752523864288,-4398.49,0.00020273,2]
[372111692,1752523864298,-4209.19,0.00020273,2]
[372111694,1752523864309,-481.24,0.00020273,2]
[372111696,1752523864319,-468.4,0.00020273,2]
[372111698,1752523864328,-645.53,0.00020273,2]
[372111700,1752523864338,-593.17,0.00020273,2]
[372111702,1752523864349,-1221.52,0.00020273,2]
[372111704,1752523864359,-5652.61,0.00020273,2]
[372111706,1752523864370,-621.62,0.00020273,2]
[372111708,1752523864380,-2631.55,0.00020273,2]
[372111710,1752523864389,-1620.37,0.00020273,2]
[372111712,1752523864399,-460.0,0.00020273,2]
[372111714,1752523864409,-576.25,0.00020273,2]
[372111716,1752523864418,-979.19,0.00020273,2]
[372111718,1752523864428,-766.81,0.00020273,2]
[372111720,1752523864438,-460.0,0.00020273,2]
[372111722,1752523864448,-513.51,0.00020273,2]
[372111724,1752523864458,-1752.1,0.00020273,2]
[372111726,1752523864467,-460.0,0.00020273,2]
[372111728,1752523864476,-489.86,0.00020273,2]
[372111730,1752523864486,-460.0,0.00020273,2]
[372111732,1752523864495,-701.36,0.00020273,2]
[372111734,1752523864505,-460.0,0.00020273,2]
[372111736,1752523864514,-460.0,0.00020273,2]
[372111738,1752523864524,-1570.24,0.00020273,2]
[372111740,1752523864534,-1583.58,0.00020273,2]
[372111742,1752523864543,-358.65009087,0.00020273,2]
[372111744,1752523864553,-822.66,0.00020273,2]
[372111745,1752523864562,-1140.82,0.00020273,2]
[372111747,1752523864571,-634.84,0.00020273,2]
[372111749,1752523864580,-779.7,0.00020273,2]
[372111751,1752523864590,-519.83,0.00020273,2]
[372111753,1752523864599,-44568.14,0.000203,2]
[372111755,1752523864608,-560.0,0.00020325,2]
[372111757,1752523864619,-500.0,0.00020366,2]
[372111759,1752523864629,-4899.4222743,0.00020383,3]
[372111761,1752523864638,-160.0,0.000204,3]
[372111763,1752523864647,-214.33456592,0.000204,3]
[372111765,1752523864657,-9139.94,0.000205,2]
[372111767,1752523864666,-858.0425556,0.00020521,2]
[372111769,1752523864675,-219.760632,0.00020547,2]
[372111771,1752523864684,-151.0,0.00020547,2]
[372111773,1752523864694,-192.131617,0.00020547,2]
[372111774,1752523864703,-219.878768,0.00020547,2]
[372111776,1752523864712,-151.0,0.00020547,2]
[372111778,1752523864722,-219.878768,0.00020547,2]
[372111781,1752523864732,-529.207943,0.00020547,2]
[372111783,1752523864741,-529.207943,0.00020547,2]
[372111784,1752523864750,-151.0,0.00020547,2]
[372111786,1752523864759,-151.0,0.00020547,2]
[372111788,1752523864769,-207.87178,0.00020547,2]
[372111790,1752523864778,-207.87178,0.00020547,2]
[372111792,1752523864787,-460.0,0.00020547,2]
[372111794,1752523864797,-174.27303,0.00020547,2]
[372111796,1752523864807,-174.27303,0.00020547,2]
[372111798,1752523864815,-151.0,0.00020547,2]
[372111800,1752523864825,-151.0,0.00020547,2]
[372111802,1752523864834,-549.65,0.00020547,2]
[372111804,1752523864843,-460.0,0.00020547,2]
[372111806,1752523864852,-488.69,0.00020547,2]
[372111808,1752523864862,-460.0,0.00020547,2]
[372111810,1752523864873,-514.19,0.00020547,2]
[372111812,1752523864882,-557.41,0.00020547,2]
[372111814,1752523864891,-460.0,0.00020547,2]
[372111816,1752523864901,-796.36,0.00020547,2]
[372111818,1752523864910,-487.91544112,0.00020547,2]
[372111820,1752523864919,-841.78,0.00020547,2]
[372111822,1752523864929,-379.39522066,0.00020547,2]
[372111824,1752523864938,-174.24704848,0.00020547,2]
[372111826,1752523864948,-752.74,0.00020547,2]
[372111828,1752523864958,-2405.54,0.00020547,2]
[372111830,1752523864968,-508.83,0.00020547,2]
[372111832,1752523864977,-460.0,0.00020547,2]
[372111834,1752523864987,-936.8,0.00020547,2]
[372111836,1752523864997,-986.06,0.00020547,2]
[372111838,1752523865007,-751.76,0.00020547,2]
[372111840,1752523865016,-1466.15,0.00020547,2]
[372111842,1752523865025,-492.2,0.00020547,2]
[372111844,1752523865035,-3285.73,0.00020547,2]
[372111846,1752523865045,-981.45,0.00020547,2]
[372111848,1752523865054,-968.1,0.00020547,2]
[372111850,1752523865064,-4398.49,0.00020547,2]
[372111852,1752523865074,-4209.19,0.00020547,2]
[372111854,1752523865083,-481.24,0.00020547,2]
[372111856,1752523865095,-468.4,0.00020547,2]
[372111858,1752523865106,-645.53,0.00020547,2]
[372111860,1752523865115,-593.17,0.00020547,2]
[372111862,1752523865125,-1221.52,0.00020547,2]
[372111864,1752523865136,-5652.61,0.00020547,2]
[372111866,1752523865147,-621.62,0.00020547,2]
[372111868,1752523865158,-2631.55,0.00020547,2]
[372111881,1752523865277,-1620.37,0.00020547,2]
[372111883,1752523865286,-460.0,0.00020547,2]
[372111885,1752523865296,-576.25,0.00020547,2]
[372111887,1752523865305,-979.19,0.00020547,2]
[372111889,1752523865315,-766.81,0.00020547,2]
[372111891,1752523865324,-460.0,0.00020547,2]
[372111893,1752523865333,-513.51,0.00020547,2]
[372111895,1752523865343,-1752.1,0.00020547,2]
[372111897,1752523865352,-460.0,0.00020547,2]
[372111899,1752523865362,-489.86,0.00020547,2]
[372111901,1752523865372,-460.0,0.00020547,2]
[372111903,1752523865381,-701.36,0.00020547,2]
[372111905,1752523865391,-460.0,0.00020547,2]
[372111907,1752523865400,-1570.24,0.00020547,2]
[372111909,1752523865410,-1583.58,0.00020547,2]
[372111911,1752523865419,-822.66,0.00020547,2]
[372111913,1752523865429,-1140.82,0.00020547,2]
[372111915,1752523865438,-634.84,0.00020547,2]
[372111917,1752523865447,-779.7,0.00020547,2]
[372111919,1752523865457,-519.83,0.00020547,2]
[372111921,1752523865466,-823.0,0.00020564,2]
[372111923,1752523865476,-1500.0,0.00020568,2]
[372111925,1752523865486,-1500.0,0.00020568,2]
[372111927,1752523865495,-469.81590477,0.00020568,2]
[372111929,1752523865504,-809.0,0.00020573,2]
[372111931,1752523865513,-2570.17636328,0.00020583,2]
[372111933,1752523865522,-3728.45,0.000206,2]
[372111935,1752523865531,-219.878768,0.000206,2]
[372111937,1752523865541,-219.878768,0.000206,2]
[372111939,1752523865550,-1464.50338569,0.0002071,20]
[372111941,1752523865560,-407.0,0.00020717,2]
[372111943,1752523865569,-407.0,0.00020717,2]
[372111945,1752523865579,-4899.4222743,0.00020728,3]
[372111947,1752523865588,-17071.28263545,0.00020739,2]
[372111949,1752523865597,-1046.69772539,0.00020794,2]
[372111951,1752523865607,-390.351367,0.00020821,2]
[372111953,1752523865616,-390.351367,0.00020821,2]
[372111955,1752523865626,-151.0,0.00020821,2]
[372111957,1752523865635,-460.0,0.00020821,2]
[372111959,1752523865645,-488.69,0.00020821,2]
[372111960,1752523865655,-460.0,0.00020821,2]
[372111962,1752523865664,-514.19,0.00020821,2]
[372111965,1752523865673,-557.41,0.00020821,2]
[372111966,1752523865683,-460.0,0.00020821,2]
[372111969,1752523865694,-796.36,0.00020821,2]
[372111971,1752523865704,-841.78,0.00020821,2]
[372111973,1752523865713,-752.74,0.00020821,2]
[372111975,1752523865723,-2405.54,0.00020821,2]
[372111976,1752523865732,-508.83,0.00020821,2]
[372111978,1752523865743,-460.0,0.00020821,2]
[372111980,1752523865752,-936.8,0.00020821,2]
[372111983,1752523865763,-986.06,0.00020821,2]
[372111984,1752523865773,-751.76,0.00020821,2]
[372111987,1752523865783,-1466.15,0.00020821,2]
[372111989,1752523865792,-492.2,0.00020821,2]
[372111990,1752523865801,-3285.73,0.00020821,2]
[372111992,1752523865811,-981.45,0.00020821,2]
[372111994,1752523865821,-968.1,0.00020821,2]
[372111996,1752523865830,-4398.49,0.00020821,2]
[372111998,1752523865839,-4209.19,0.00020821,2]
[372112000,1752523865848,-481.24,0.00020821,2]
[372112002,1752523865859,-468.4,0.00020821,2]
[372112004,1752523865869,-645.53,0.00020821,2]
[372112006,1752523865879,-593.17,0.00020821,2]
[372112008,1752523865893,-1221.52,0.00020821,2]
[372112012,1752523865916,-5652.61,0.00020821,2]
[372112014,1752523865932,-621.62,0.00020821,2]
[372112017,1752523865952,-1620.37,0.00020821,2]
[372112020,1752523865975,-2631.55,0.00020821,2]
[372112023,1752523865992,-460.0,0.00020821,2]
[372112027,1752523866011,-576.25,0.00020821,2]
[372112029,1752523866029,-979.19,0.00020821,2]
[372112032,1752523866043,-766.81,0.00020821,2]
[372112035,1752523866061,-460.0,0.00020821,2]
[372112037,1752523866078,-513.51,0.00020821,2]
[372112040,1752523866097,-1752.1,0.00020821,2]
[372112043,1752523866110,-460.0,0.00020821,2]
[372112046,1752523866129,-489.86,0.00020821,2]
[372112048,1752523866148,-460.0,0.00020821,2]
[372112051,1752523866166,-701.36,0.00020821,2]
[372112054,1752523866179,-460.0,0.00020821,2]
[372112056,1752523866197,-1570.24,0.00020821,2]
[372112058,1752523866213,-1583.58,0.00020821,2]
[372112061,1752523866227,-822.66,0.00020821,2]
[372112063,1752523866243,-1140.82,0.00020821,2]
[372112066,1752523866258,-634.84,0.00020821,2]
[372112069,1752523866273,-779.7,0.00020821,2]
[372112071,1752523866289,-519.83,0.00020821,2]
[372112074,1752523866304,-660.0,0.00020873,2]
[372112076,1752523866319,-249.78615666,0.000209,2]
[372112079,1752523866335,-1718.83272436,0.00020928,2]
[372112081,1752523866350,-200.0,0.0002096,2]
[372112084,1752523866365,-664.87,0.00020988,2]
[372112087,1752523866381,-9316.60710552,0.00021,2]
[372112089,1752523866396,-1042.15162603,0.00021,2]
[372112092,1752523866410,-269.87841029,0.00021,2]
[372112094,1752523866425,-201.8736981,0.00021,2]
[372112097,1752523866440,-161529.28759309,0.00021,15]
[372112099,1752523866455,-122430.20892678,0.00021,15]
[372112102,1752523866469,-2000.0,0.00021,2]
[372112105,1752523866484,-151.0,0.00021,2]
[372112107,1752523866498,-219.878768,0.00021,2]
[372112110,1752523866513,-219.878768,0.00021,2]
[372112112,1752523866527,-151.0,0.00021,2]
[372112114,1752523866541,-219.878768,0.00021,2]
[372112117,1752523866556,-219.878768,0.00021,2]
[372112119,1752523866571,-529.207943,0.00021,2]
[372112122,1752523866585,-529.207943,0.00021,2]
[372112124,1752523866600,-390.351367,0.00021,2]
[372112127,1752523866615,-390.351358,0.00021,2]
[372112130,1752523866634,-151.0,0.00021,2]
[372112132,1752523866650,-151.0,0.00021,2]
[372112135,1752523866665,-207.87178,0.00021,2]
[372112137,1752523866681,-207.87179,0.00021,2]
[372112140,1752523866695,-174.27303,0.00021,2]
[372112142,1752523866709,-174.27303,0.00021,2]
[372112145,1752523866726,-151.0,0.00021,2]
[372112147,1752523866740,-151.0,0.00021,2]
[372112150,1752523866758,-3000.0,0.00021,2]
[372112152,1752523866772,-283.335264,0.00021,2]
[372112155,1752523866787,-283.335264,0.00021,2]
[372112158,1752523866803,-3000.0,0.0002101,2]
[372112160,1752523866819,-3000.0,0.0002102,2]
[372112163,1752523866835,-3000.0,0.0002103,2]
[372112165,1752523866849,-3000.0,0.0002104,2]
[372112168,1752523866865,-3000.0,0.0002105,2]
[372112171,1752523866883,-3000.0,0.0002106,2]
[372112173,1752523866894,-3000.0,0.0002107,2]
[372112189,1752523867031,-4899.4222743,0.00021072,4]
[372112191,1752523867052,-3000.0,0.0002108,2]
[372112193,1752523867062,-3000.0,0.0002109,2]
[372112195,1752523867072,-460.0,0.00021095,2]
[372112197,1752523867081,-488.69,0.00021095,2]
[372112199,1752523867090,-460.0,0.00021095,2]
[372112201,1752523867100,-514.19,0.00021095,2]
[372112203,1752523867109,-557.41,0.00021095,2]
[372112205,1752523867119,-460.0,0.00021095,2]
[372112207,1752523867129,-796.36,0.00021095,2]
[372112209,1752523867140,-841.78,0.00021095,2]
[372112211,1752523867150,-752.74,0.00021095,2]
[372112213,1752523867159,-2405.54,0.00021095,2]
[372112215,1752523867168,-508.83,0.00021095,2]
[372112216,1752523867179,-460.0,0.00021095,2]
[372112218,1752523867189,-936.8,0.00021095,2]
[372112220,1752523867197,-986.06,0.00021095,2]
[372112222,1752523867206,-751.76,0.00021095,2]
[372112224,1752523867216,-1466.15,0.00021095,2]
[372112226,1752523867225,-492.2,0.00021095,2]
[372112228,1752523867235,-3285.73,0.00021095,2]
[372112230,1752523867244,-981.45,0.00021095,2]
[372112232,1752523867253,-968.1,0.00021095,2]
[372112234,1752523867263,-4398.49,0.00021095,2]
[372112236,1752523867273,-4209.19,0.00021095,2]
[372112238,1752523867282,-481.24,0.00021095,2]
[372112240,1752523867291,-468.4,0.00021095,2]
[372112242,1752523867300,-645.53,0.00021095,2]
[372112244,1752523867310,-593.17,0.00021095,2]
[372112246,1752523867319,-1221.52,0.00021095,2]
[372112248,1752523867329,-5652.61,0.00021095,2]
[372112250,1752523867338,-621.62,0.00021095,2]
[372112252,1752523867348,-1620.37,0.00021095,2]
[372112254,1752523867358,-2631.55,0.00021095,2]
[372112256,1752523867367,-460.0,0.00021095,2]
[372112258,1752523867379,-576.25,0.00021095,2]
[372112259,1752523867389,-979.19,0.00021095,2]
[372112261,1752523867398,-766.81,0.00021095,2]
[372112263,1752523867407,-460.0,0.00021095,2]
[372112265,1752523867417,-513.51,0.00021095,2]
[372112267,1752523867426,-1752.1,0.00021095,2]
[372112269,1752523867435,-460.0,0.00021095,2]
[372112271,1752523867445,-489.86,0.00021095,2]
[372112273,1752523867454,-460.0,0.00021095,2]
[372112275,1752523867464,-701.36,0.00021095,2]
[372112277,1752523867474,-460.0,0.00021095,2]
[372112279,1752523867484,-1570.24,0.00021095,2]
[372112281,1752523867493,-451.63385134,0.00021095,2]
[372112283,1752523867503,-1583.58,0.00021095,2]
[372112285,1752523867512,-822.66,0.00021095,2]
[372112287,1752523867521,-1140.82,0.00021095,2]
[372112289,1752523867531,-634.84,0.00021095,2]
[372112291,1752523867540,-779.7,0.00021095,2]
[372112293,1752523867549,-519.83,0.00021095,2]
[372112295,1752523867559,-3000.0,0.000211,2]
[372112297,1752523867568,-3000.0,0.0002111,2]
[372112299,1752523867578,-2000.0,0.00021116,2]
[372112301,1752523867587,-3000.0,0.0002112,2]
[372112303,1752523867597,-3000.0,0.0002113,2]
[372112305,1752523867606,-3000.0,0.0002114,2]
[372112306,1752523867615,-3000.0,0.0002115,2]
[372112308,1752523867627,-3000.0,0.0002116,2]
[372112310,1752523867637,-3000.0,0.0002117,2]
[372112312,1752523867647,-174.27303,0.00021175,2]
[372112314,1752523867656,-174.27303,0.00021175,2]
[372112316,1752523867666,-151.0,0.00021175,2]
[372112318,1752523867676,-647.0,0.00021175,2]
[372112320,1752523867685,-2154.0,0.00021175,2]
[372112322,1752523867695,-968.0,0.00021175,2]
[372112324,1752523867704,-3000.0,0.0002118,2]
[372112326,1752523867714,-3000.0,0.0002119,2]
[372112327,1752523867724,-3000.0,0.000212,2]
[372112329,1752523867734,-159.6739465,0.00021205,2]
[372112331,1752523867743,-177.8544682,0.00021205,2]
[372112333,1752523867752,-159.6739465,0.00021205,2]
[372112335,1752523867762,-177.960412,0.00021205,2]
[372112337,1752523867771,-576.6654682,0.00021205,2]
[372112339,1752523867781,-159.6739465,0.00021205,2]
[372112341,1752523867790,-159.6739465,0.00021205,2]
[372112343,1752523867799,-151.0,0.0002121,2]
[372112345,1752523867809,-151.0,0.0002121,2]
[372112347,1752523867818,-3000.0,0.0002121,2]
[372112349,1752523867828,-3000.0,0.0002122,2]
[372112351,1752523867837,-3000.0,0.0002123,2]
[372112352,1752523867846,-374.0,0.00021234,2]
[372112353,1752523867855,-3000.0,0.0002124,2]
[372112354,1752523867864,-151.0,0.0002125,2]
[372112355,1752523867876,-180.628038,0.0002125,2]
[372112356,1752523867885,-529.207943,0.0002125,2]
[372112357,1752523867894,-529.207943,0.0002125,2]
[372112358,1752523867903,-3000.0,0.0002125,2]
[372112359,1752523867912,-160.0,0.00021255,3]
[372112360,1752523867921,-500.0,0.0002126,2]
[372112361,1752523867930,-3000.0,0.0002126,2]
[372112362,1752523867939,-3000.0,0.0002127,2]
[372112363,1752523867948,-3000.0,0.0002128,2]
[372112364,1752523867957,-3000.0,0.0002129,2]
[372112365,1752523867966,-3000.0,0.000213,2]
[372112366,1752523867976,-3000.0,0.0002131,2]
[372112367,1752523867985,-3000.0,0.0002132,2]
[372112368,1752523867994,-3747.082903,0.0002133,2]
[372112369,1752523868003,-231.28369723,0.00021358,2]
[372112370,1752523868012,-2570.17636328,0.00021359,2]
[372112371,1752523868021,-283.335264,0.00021364,2]
[372112372,1752523868030,-283.335254,0.00021364,2]
[372112373,1752523868039,-460.0,0.00021369,2]
[372112374,1752523868048,-488.69,0.00021369,2]
[372112375,1752523868058,-460.0,0.00021369,2]
[372112377,1752523868068,-514.19,0.00021369,2]
[372112379,1752523868077,-557.41,0.00021369,2]
[372112381,1752523868087,-358.69216042,0.00021369,2]
[372112383,1752523868097,-796.36,0.00021369,2]
[372112385,1752523868106,-841.78,0.00021369,2]
[372112387,1752523868116,-752.74,0.00021369,2]
[372112389,1752523868129,-2405.54,0.00021369,2]
[372112391,1752523868142,-508.83,0.00021369,2]
[372112393,1752523868151,-460.0,0.00021369,2]
[372112395,1752523868161,-936.8,0.00021369,2]
[372112397,1752523868170,-986.06,0.00021369,2]
[372112399,1752523868180,-751.76,0.00021369,2]
[372112401,1752523868190,-1466.15,0.00021369,2]
[372112403,1752523868199,-492.2,0.00021369,2]
[372112405,1752523868208,-3285.73,0.00021369,2]
[372112407,1752523868219,-981.45,0.00021369,2]
[372112409,1752523868230,-968.1,0.00021369,2]
[372112411,1752523868239,-4398.49,0.00021369,2]
[372112412,1752523868249,-4209.19,0.00021369,2]
[372112414,1752523868258,-481.24,0.00021369,2]
[372112416,1752523868268,-468.4,0.00021369,2]
[372112418,1752523868278,-645.53,0.00021369,2]
[372112420,1752523868287,-593.17,0.00021369,2]
[372112422,1752523868297,-1221.52,0.00021369,2]
[372112424,1752523868307,-5652.61,0.00021369,2]
[372112426,1752523868317,-621.62,0.00021369,2]
[372112428,1752523868328,-1620.37,0.00021369,2]
[372112430,1752523868338,-2631.55,0.00021369,2]
[372112433,1752523868348,-360.24,0.00021369,2]
[372112434,1752523868357,-576.25,0.00021369,2]
[372112436,1752523868367,-979.19,0.00021369,2]
[372112438,1752523868380,-766.81,0.00021369,2]
[372112441,1752523868389,-460.0,0.00021369,2]
[372112443,1752523868399,-513.51,0.00021369,2]
[372112445,1752523868409,-1752.1,0.00021369,2]
[372112447,1752523868418,-490.82045502,0.00021369,2]
[372112448,1752523868428,-489.86,0.00021369,2]
[372112450,1752523868438,-460.0,0.00021369,2]
[372112453,1752523868448,-701.36,0.00021369,2]
[372112455,1752523868457,-460.0,0.00021369,2]
[372112457,1752523868467,-1570.24,0.00021369,2]
[372112458,1752523868476,-1583.58,0.00021369,2]
[372112460,1752523868485,-822.66,0.00021369,2]
[372112462,1752523868495,-1140.82,0.00021369,2]
[372112464,1752523868505,-634.84,0.00021369,2]
[372112466,1752523868515,-779.7,0.00021369,2]
[372112468,1752523868524,-519.83,0.00021369,2]
[372112470,1752523868533,-500.0,0.00021385,2]
[372112472,1752523868543,-4899.4222743,0.00021417,5]
[372112474,1752523868552,-760.0,0.00021421,2]
[372112476,1752523868561,-10124.17892319,0.000215,2]
[372112478,1752523868571,-44568.14,0.000215,2]
[372112480,1752523868580,-219.878768,0.000215,2]
[372112482,1752523868590,-219.878763,0.000215,2]
[372112484,1752523868599,-505.0,0.00021542,2]
[372112486,1752523868608,-5399.49132753,0.00021643,7]
[372112488,1752523868617,-174.27303,0.00021643,2]
[372112490,1752523868629,-174.27303,0.00021643,2]
[372112492,1752523868638,-151.0,0.00021643,2]
[372112494,1752523868647,-564.43530856,0.00021643,2]
[372112496,1752523868657,-488.69,0.00021643,2]
[372112498,1752523868667,-460.0,0.00021643,2]
[372112500,1752523868676,-514.19,0.00021643,2]
[372112502,1752523868686,-557.41,0.00021643,2]
[372112504,1752523868696,-796.36,0.00021643,2]
[372112506,1752523868705,-841.78,0.00021643,2]
[372112508,1752523868715,-752.74,0.00021643,2]
[372112510,1752523868724,-2405.54,0.00021643,2]
[372112512,1752523868734,-508.83,0.00021643,2]
[372112514,1752523868744,-460.0,0.00021643,2]
[372112516,1752523868753,-936.8,0.00021643,2]
[372112518,1752523868763,-986.06,0.00021643,2]
[372112520,1752523868773,-751.76,0.00021643,2]
[372112522,1752523868782,-1466.15,0.00021643,2]
[372112524,1752523868791,-492.2,0.00021643,2]
[372112526,1752523868801,-3285.73,0.00021643,2]
[372112528,1752523868811,-981.45,0.00021643,2]
[372112530,1752523868821,-968.1,0.00021643,2]
[372112532,1752523868831,-4398.49,0.00021643,2]
[372112534,1752523868841,-4209.19,0.00021643,2]
[372112536,1752523868850,-481.24,0.00021643,2]
[372112538,1752523868859,-468.4,0.00021643,2]
[372112540,1752523868869,-645.53,0.00021643,2]
[372112542,1752523868879,-593.17,0.00021643,2]
[372112544,1752523868889,-1221.52,0.00021643,2]
[372112546,1752523868898,-5652.61,0.00021643,2]
[372112548,1752523868908,-621.62,0.00021643,2]
[372112550,1752523868919,-1620.37,0.00021643,2]
[372112552,1752523868929,-2631.55,0.00021643,2]
[372112554,1752523868939,-576.25,0.00021643,2]
[372112565,1752523869041,-979.19,0.00021643,2]
[372112567,1752523869052,-766.81,0.00021643,2]
[372112569,1752523869061,-460.0,0.00021643,2]
[372112571,1752523869071,-513.51,0.00021643,2]
[372112573,1752523869080,-1752.1,0.00021643,2]
[372112575,1752523869090,-489.86,0.00021643,2]
[372112577,1752523869100,-460.0,0.00021643,2]
[372112579,1752523869110,-701.36,0.00021643,2]
[372112581,1752523869122,-460.0,0.00021643,2]
[372112584,1752523869133,-1570.24,0.00021643,2]
[372112586,1752523869147,-1583.58,0.00021643,2]
[372112588,1752523869156,-822.66,0.00021643,2]
[372112590,1752523869165,-1140.82,0.00021643,2]
[372112591,1752523869175,-634.84,0.00021643,2]
[372112593,1752523869185,-779.7,0.00021643,2]
[372112595,1752523869195,-519.83,0.00021643,2]
[372112597,1752523869204,-1811.61810555,0.00021664,2]
[372112600,1752523869216,-9139.94,0.000217,2]
[372112602,1752523869225,-160.0,0.00021716,4]
[372112604,1752523869234,-4899.4222743,0.00021762,5]